lending/lending_fUSD_20240711
["ID","MTS","AMOUNT","RATE_DAILY","PERIOD"]
[331738338,1720727440987,-150.0,0.00013787,2]
[331738339,1720727440996,-150.0,0.00013787,2]
[331738340,1720727441005,-150.0,0.00013789,2]
[331738341,1720727441015,-150.0,0.0001379,2]
[331738342,1720727441025,-150.0,0.00013794,2]
[331738343,1720727441034,-150.0,0.00013796,2]
[331738344,1720727441043,-300.0,0.00013799,2]
[331738345,1720727441053,-500.0,0.00013799,2]
[331738346,1720727441062,-755.99,0.00013799,2]
[331738347,1720727441072,-500.0,0.00013799,2]
[331738348,1720727441081,-500.0,0.00013799,2]
[331738349,1720727441091,-500.0,0.00013799,2]
[331738350,1720727441102,-500.0,0.00013799,2]
[331738351,1720727441111,-500.0,0.00013799,2]
[331738352,1720727441121,-500.0,0.00013799,2]
[331738353,1720727441130,-500.0,0.00013799,2]
[331738354,1720727441139,-300.0,0.00013799,2]
[331738355,1720727441149,-500.0,0.00013799,2]
[331738356,1720727441158,-500.0,0.00013799,2]
[331738357,1720727441167,-500.0,0.00013799,2]
[331738358,1720727441176,-500.0,0.00013799,2]
[331738359,1720727441185,-500.0,0.00013799,2]
[331738360,1720727441195,-500.0,0.00013799,2]
[331738361,1720727441203,-150.0,0.00013799,2]
[331738362,1720727441289,-500.0,0.00013799,2]
[331738363,1720727441299,-500.0,0.00013799,2]
[331738364,1720727441309,-500.0,0.00013799,2]
[331738365,1720727441318,-500.0,0.00013799,2]
[331738366,1720727441327,-500.0,0.00013799,2]
[331738367,1720727441336,-712.73,0.00013799,2]
[331738368,1720727441347,-300.0,0.00013799,2]
[331738369,1720727441356,-526.81,0.00013799,2]
[331738370,1720727441365,-500.0,0.00013799,2]
[331738371,1720727441374,-500.0,0.00013799,2]
[331738372,1720727441383,-527.17,0.00013799,2]
[331738373,1720727441393,-500.0,0.00013799,2]
[331738374,1720727441402,-500.0,0.00013799,2]
[331738375,1720727441411,-300.0,0.00013799,2]
[331738376,1720727441420,-90.15503976,0.00013799,2]
[331738377,1720727441432,-409.84496024,0.00013799,2]
[331738378,1720727441441,-500.0,0.00013799,2]
[331738379,1720727441450,-500.0,0.00013799,2]
[331738380,1720727441459,-508.9,0.00013799,2]
[331738381,1720727441467,-500.0,0.00013799,2]
[331738382,1720727441476,-582.99,0.00013799,2]
[331738383,1720727441485,-500.0,0.00013799,2]
[331738384,1720727441494,-500.0,0.00013799,2]
[331738385,1720727441503,-271.24,0.00013799,2]
[331738386,1720727441512,-500.0,0.00013799,2]
[331738387,1720727441521,-500.0,0.00013799,2]
[331738388,1720727441530,-543.55,0.00013799,2]
[331738389,1720727441539,-500.0,0.00013799,2]
[331738390,1720727441548,-514.0,0.00013799,2]
[331738391,1720727441558,-300.0,0.00013799,2]
[331738392,1720727441567,-500.0,0.00013799,2]
[331738393,1720727441576,-500.0,0.00013799,2]
[331738394,1720727441585,-513.28,0.00013799,2]
[331738395,1720727441597,-500.0,0.00013799,2]
[331738396,1720727441607,-200.0,0.00013799,7]
[331738397,1720727441617,-500.0,0.00013799,2]
[331738398,1720727441627,-500.0,0.00013799,2]
[331738399,1720727441636,-730.0,0.000138,2]
[331738400,1720727441647,-2254.58613959,0.000138,2]
[331738401,1720727441658,-4051.27967128,0.000138,2]
[331738402,1720727441670,-1541.98589132,0.000138,2]
[331738403,1720727441694,-155.0,0.00013128,2]
[331738404,1720727441704,-4682.95670771,0.000138,2]
[331738406,1720727442477,-5897.1291656,0.000138,2]
[331738407,1720727442529,-1449.45668,0.000138,2]
[331738408,1720727442540,-13040.6402259,0.000138,2]
[331738409,1720727442636,-1950.0,0.000138,2]
[331738410,1720727442648,-1319.07941141,0.000138,2]
[331738411,1720727442659,-8754.77445779,0.000138,2]
[331738412,1720727442690,-1280.37745868,0.000138,2]
[331738413,1720727442701,-495.58079881,0.000138,2]
[331738414,1720727442744,-349.66913574,0.000138,2]
[331738415,1720727442756,-115926.52389214,0.000138,2]
[331738425,1720727445678,-1444.79105706,0.000138,2]
[331738426,1720727445691,-267.91016599,0.000138,2]
[331738429,1720727517652,500.0,0.0001126,2]
[331738430,1720727671930,155.0,0.00011199,2]
[331738432,1720727755681,345.0,0.00010796,2]
[331738433,1720727755713,90.28,0.00010796,2]
[331738436,1720728156208,155.0,0.00011199,2]
[331738437,1720728249395,110.15669681,0.00011199,2]
[331738438,1720728249416,44.84330319,0.00011199,2]
[331738439,1720728257032,1352.43960015,0.00011199,2]
[331738440,1720728257149,88627.35856682,0.00011199,2]
[331738441,1720728277613,440.56,0.00010804,2]
[331738449,1720728406588,1265.84016916,0.00011199,2]
[331738450,1720728424788,1147.90157651,0.00011199,2]
[331738451,1720728438213,3795.21437752,0.00011199,2]
[331738452,1720728448454,891.83072894,0.00011199,2]
[331738461,1720728579376,196.12854204,0.00011199,2]
[331738462,1720728580480,251.91095418,0.00011199,2]
[331738464,1720728629487,281.13588833,0.00011199,2]
[331738488,1720728631592,-316.0773283,0.00012302,2]
[331738489,1720728631601,-250.0,0.00012699,2]
[331738491,1720728631612,-160.0,0.00012704,2]
[331738493,1720728631622,-245.79,0.00012755,2]
[331738495,1720728631631,-809.79150275,0.00012801,2]
[331738497,1720728631643,-62.20849725,0.00012801,2]
[331738499,1720728631653,-500.0,0.00012904,2]
[331738501,1720728631662,-440.56,0.00013068,2]
[331738503,1720728631672,-177.786747,0.00013331,2]
[331738505,1720728631681,-150.0,0.00013553,2]
[331738507,1720728631690,-245.86376225,0.00013574,2]
[331738509,1720728631700,-1308.18058082,0.00013574,2]
[331738544,1720728632055,-2084.98350111,0.00013574,2]
[331738546,1720728632067,-803.0,0.00013595,2]
[331738547,1720728632077,-150.0,0.00013606,2]
[331738548,1720728632087,-150.0,0.00013611,2]
[331738549,1720728632097,-150.0,0.00013611,2]
[331738550,1720728632107,-150.0,0.00013621,2]
[331738551,1720728632116,-150.0,0.00013628,2]
[331738552,1720728632126,-446.168,0.0001364,2]
[331738553,1720728632135,-254.67875993,0.00013648,2]
[331738554,1720728632144,-2981.64475,0.0001366,2]
[331738555,1720728632154,-300.0,0.00013661,2]
[331738556,1720728632164,-10049.0,0.00013662,2]
[331738557,1720728632175,-209.75934926,0.00013663,2]
[331738558,1720728632184,-177.786747,0.00013665,2]
[331738559,1720728632194,-150.0,0.00013673,2]
[331738560,1720728632203,-500.0,0.00013689,2]
[331738561,1720728632213,-500.0,0.0001369,2]
[331738562,1720728632223,-150.0,0.0001369,2]
[331738563,1720728632232,-150.0,0.00013691,2]
[331738564,1720728632241,-593.79096201,0.00013699,2]
[331738565,1720728632251,-251.97,0.00013699,2]
[331738566,1720728632260,-199.64,0.00013699,2]
[331738567,1720728632269,-220.31,0.00013699,3]
[331738568,1720728632279,-10000.0,0.000137,2]
[331738569,1720728632289,-411.3979,0.000137,2]
[331738570,1720728632300,-22856.4356,0.000137,2]
[331738571,1720728632310,-174.88201534,0.000137,2]
[331738572,1720728632319,-162.66868338,0.000137,2]
[331738573,1720728632329,-316.05201467,0.000137,2]
[331738574,1720728632339,-321.30114503,0.000137,2]
[331738575,1720728632349,-204.23794938,0.000137,2]
[331738576,1720728632359,-150.0,0.00013709,2]
[331738577,1720728632370,-150.0,0.00013726,2]
[331738578,1720728632379,-803.0,0.00013735,2]
[331738579,1720728632389,-150.0,0.00013751,2]
[331738580,1720728632399,-593.79096201,0.00013753,2]
[331738581,1720728632409,-150.0,0.00013754,2]
[331738582,1720728632419,-1332.75371993,0.00013759,2]
[331738583,1720728632428,-1332.75371993,0.00013759,2]
[331738584,1720728632438,-150.0,0.0001378,2]
[331738585,1720728632447,-150.0,0.00013786,2]
[331738586,1720728632457,-254.4478541,0.0001379,2]
[331738587,1720728632466,-254.4478541,0.0001379,2]
[331738588,1720728632476,-254.4478541,0.0001379,2]
[331738589,1720728632485,-4774.9860903,0.00013794,2]
[331738590,1720728632495,-694.9912943,0.00013794,2]
[331738591,1720728632505,-2425.5099029,0.00013794,2]
[331738592,1720728632515,-266.93234512,0.00013799,2]
[331738593,1720728632524,-300.0,0.00013799,2]
[331738594,1720728632533,-500.0,0.00013799,2]
[331738595,1720728632542,-500.0,0.00013799,2]
[331738596,1720728632552,-500.0,0.00013799,2]
[331738597,1720728632561,-300.0,0.00013799,2]
[331738598,1720728632571,-500.0,0.00013799,2]
[331738600,1720728632580,-500.0,0.00013799,2]
[331738601,1720728632590,-500.0,0.00013799,2]
[331738603,1720728632599,-500.0,0.00013799,2]
[331738605,1720728632609,-500.0,0.00013799,2]
[331738607,1720728632619,-500.0,0.00013799,2]
[331738609,1720728632628,-500.0,0.00013799,2]
[331738610,1720728632638,-500.0,0.00013799,2]
[331738612,1720728632648,-500.0,0.00013799,2]
[331738613,1720728632657,-500.0,0.00013799,2]
[331738614,1720728632666,-500.0,0.00013799,2]
[331738615,1720728632676,-500.0,0.00013799,2]
[331738616,1720728632685,-520.9,0.00013799,2]
[331738617,1720728632695,-500.0,0.00013799,2]
[331738618,1720728632704,-558.7,0.00013799,2]
[331738619,1720728632713,-500.0,0.00013799,2]
[331738620,1720728632723,-500.0,0.00013799,2]
[331738621,1720728632837,-500.0,0.00013799,2]
[331738622,1720728632847,-500.0,0.00013799,2]
[331738623,1720728632856,-500.0,0.00013799,2]
[331738624,1720728632865,-500.0,0.00013799,2]
[331738625,1720728632875,-500.0,0.00013799,2]
[331738626,1720728632885,-683.03,0.00013799,2]
[331738627,1720728632894,-300.0,0.00013799,2]
[331738628,1720728632904,-504.85,0.00013799,2]
[331738629,1720728632913,-500.0,0.00013799,2]
[331738630,1720728632923,-500.0,0.00013799,2]
[331738631,1720728632932,-200.0,0.00013799,7]
[331738632,1720728632942,-500.0,0.00013799,2]
[331738633,1720728632951,-500.0,0.00013799,2]
[331738634,1720728632961,-300.0,0.00013799,2]
[331738635,1720728632971,-724.49,0.00013799,2]
[331738636,1720728632980,-500.0,0.00013799,2]
[331738637,1720728632994,-500.0,0.00013799,2]
[331738638,1720728633002,-500.0,0.00013799,2]
[331738639,1720728633012,-500.0,0.00013799,2]
[331738640,1720728633021,-500.0,0.00013799,2]
[331738641,1720728633032,-500.0,0.00013799,2]
[331738642,1720728633043,-500.0,0.00013799,2]
[331738643,1720728633054,-500.0,0.00013799,2]
[331738644,1720728633065,-500.0,0.00013799,2]
[331738645,1720728633074,-500.0,0.00013799,2]
[331738646,1720728633084,-500.0,0.00013799,2]
[331738647,1720728633094,-500.0,0.00013799,2]
[331738648,1720728633104,-500.0,0.00013799,2]
[331738649,1720728633115,-828.0,0.000138,2]
[331738650,1720728633129,-342236.88576865,0.000138,2]
[331738651,1720728633143,-3244.55441955,0.000138,2]
[331738652,1720728633221,-14099.22284799,0.000138,2]
[331738674,1720728637824,-500.0,0.00013799,2]
[331738675,1720728637833,-173.88428946,0.00013799,2]
[331738676,1720728637928,-268.20336486,0.00013799,2]
[331738677,1720728637940,-57.91234568,0.00013799,2]
[331738678,1720728637951,-603.05336486,0.000138,2]
[331738684,1720728639610,-138.94663514,0.000138,2]
[331738685,1720728639620,-411517.60943571,0.000138,2]
[331738686,1720728639631,-793735.82543645,0.000138,2]
[331738687,1720728639661,-480.24999998,0.000138,2]
[331738688,1720728639768,-65864.16137191,0.000138,2]
[331738689,1720728639874,-2999.9988868,0.000138,2]
[331738728,1720728642699,-904.0,0.00012939,2]
[331738729,1720728642708,-245.07228572,0.000137,2]
[331738730,1720728642805,-1133.20130534,0.000137,2]
[331738820,1720728644062,-8621.72640894,0.000137,2]
[331738822,1720728644072,-74342.23844582,0.000138,2]
[331738839,1720728646491,-715.71172476,0.000138,2]
[331738840,1720728646593,-13.28827524,0.000138,2]
[331738841,1720728646603,-57569.24052477,0.000138,2]
[331738842,1720728646614,-287.9247,0.000138,2]
[331738843,1720728646646,-4919.07120143,0.000138,2]
[331738888,1720728665915,500.0,0.0001126,2]
[331738889,1720728694726,500.0,0.0001126,2]
[331738890,1720728708021,637.63,0.00010959,2]
[331738891,1720728811085,637.62,0.00010959,2]
[331738892,1720728813263,454.68,0.00010805,2]
[331738893,1720728842138,3005.60112898,0.00011199,2]
[331738896,1720728979952,518.5213064,0.00011199,2]
[331738897,1720728985310,9483.57756462,0.00011199,2]
[331738898,1720728985332,10030.54559914,0.00011199,2]
[331738899,1720728993798,-155.90100756,0.00012302,2]
[331738900,1720728993822,-414.02655178,0.00012302,2]
[331738901,1720728993846,-206.0809587,0.00012302,2]
[331738902,1720728993869,-170.38860931,0.00012302,2]
[331738903,1720728993893,-453.09541711,0.00012314,2]
[331738904,1720728993917,-157.52085627,0.00012314,2]
[331738905,1720728993940,-306.3645771,0.00012314,2]
[331738906,1720728993966,-529.80766427,0.00012314,2]
[331738907,1720728993989,-155.69761545,0.00012314,2]
[331738908,1720728994014,-474.9799257,0.00012314,2]
[331738909,1720728994039,-241.34,0.00012592,2]
[331738910,1720728994062,-168.75,0.00012627,2]
[331738911,1720728994094,-227.38,0.00012722,2]
[331738912,1720728994118,-250.0,0.00012731,2]
[331738913,1720728994143,-15914.2477,0.00012804,2]
[331738914,1720728994168,-500.0,0.00012904,2]
[331738915,1720728994192,-500.0,0.00012904,2]
[331738916,1720728994217,-597.34,0.00012907,2]
[331738917,1720728994242,-203.36,0.00012926,2]
[331738918,1720728994266,-373.71911675,0.00013,2]
[331738919,1720729061767,170.93300527,0.0001126,2]
[331738924,1720729253089,5532.8324232,0.00011199,2]
[331738925,1720729261872,2657.43217293,0.00027,120]
[331738926,1720729332228,369.14925316,0.00011199,2]
[331738927,1720729404660,8071.60206644,0.00011199,2]
[331738928,1720729541241,227.30730583,0.00011199,2]
[331738930,1720729545496,1250.93121007,0.00011199,2]
[331738931,1720729548787,155.0,0.00011199,2]
[331738933,1720729581332,473.7126144,0.00011199,2]
[331738934,1720729594480,458.31,0.00010533,2]
[331738935,1720729606442,285.98048656,0.00011199,2]
[331738937,1720729658228,1507.87807155,0.00011199,2]
[331738940,1720729726384,650.91919934,0.00011199,2]
[331738941,1720729728630,1013.68864111,0.00011199,2]
[331738942,1720729734016,476.10316361,0.00011199,2]
[331738943,1720729738905,167.88,0.00010959,2]
[331738951,1720729831802,-216.70324986,0.00012202,2]
[331738952,1720729831811,-483.29675014,0.00012302,2]
[331738953,1720729831823,-42.98311736,0.00012302,2]
[331738954,1720729831832,-173.97014058,0.00012302,2]
[331738955,1720729831843,-313.84024762,0.00012302,2]
[331738956,1720729831853,-250.0,0.00012445,2]
[331738957,1720729831862,-723.2,0.00012458,2]
[331738958,1720729831871,-237.31,0.00012491,2]
[331738959,1720729831880,-659.47,0.0001251,2]
[331738960,1720729831889,-335.15,0.00012581,2]
[331738961,1720729831899,-276.8,0.00012621,2]
[331738962,1720729831907,-153.95,0.00012684,2]
[331738963,1720729831916,-254.59438945,0.00012797,2]
[331738964,1720729831928,-203.71561055,0.00012797,2]
[331738965,1720729831940,-462.70438945,0.00013,2]
[331738966,1720729831952,-413.5764938,0.00013,2]
[331738967,1720729831961,-52.07471259,0.00013069,2]
[331738968,1720729831972,-447.91528741,0.00013069,2]
[331738969,1720729831981,-150.0,0.000131,2]
[331738970,1720729831991,-197.65472259,0.00013121,2]
[331738971,1720729832002,-102.34527741,0.00013121,2]
[331738972,1720729832011,-300.0,0.00013121,2]
[331738973,1720729832020,-2930.27739259,0.00013122,2]
[331738977,1720729832079,-8440.40459557,0.00013122,2]
[331738979,1720729832090,-493.5770007,0.00013122,2]
[331738981,1720729832101,-264.82796935,0.00013122,2]
[331738982,1720729832112,-3200.0,0.00013122,2]
[331738984,1720729832123,-1625.57304693,0.00013122,2]
[331738987,1720729832135,-16283.67235801,0.00013122,2]
[331738989,1720729832147,-2464.57032252,0.00013122,2]
[331738991,1720729832159,-302.0,0.00013122,2]
[331738993,1720729832170,-1203.63841064,0.00013122,2]
[331738996,1720729832183,-1820.38149387,0.00013122,2]
[331738998,1720729832194,-22961.07740982,0.00013122,2]
[331739000,1720729832204,-202.0,0.0001313,2]
[331739002,1720729832214,-118.87183625,0.000132,2]
[331739004,1720729832226,-31.12816375,0.000132,2]
[331739006,1720729832235,-300.0,0.000132,2]
[331739007,1720729832245,-213.44891618,0.000132,2]
[331739009,1720729832257,-86.55108382,0.000132,2]
[331739012,1720729832267,-150.0,0.000132,2]
[331739013,1720729832277,-181.98899291,0.000132,2]
[331739016,1720729832289,-118.01100709,0.000132,2]
[331739018,1720729832299,-374.46,0.000132,2]
[331739020,1720729832309,-300.0,0.000132,2]
[331739022,1720729832319,-45.35707796,0.000132,2]
[331739024,1720729832340,-104.64292204,0.000132,2]
[331739026,1720729832350,-6288.14024197,0.00013221,2]
[331739029,1720729832362,-3711.85975803,0.00013221,2]
[331739030,1720729832373,-8142.049396,0.00013229,2]
[331739032,1720729832383,-1266.494704,0.00013229,2]
[331739034,1720729832393,-202.0,0.0001324,2]
[331739036,1720729832403,-2874.4149749,0.00013283,2]
[331739038,1720729832415,-2677.699,0.00013295,2]
[331739040,1720729832426,-150.0,0.000133,2]
[331739043,1720729832442,-202.0,0.0001335,2]
[331739045,1720729832452,-8142.049396,0.00013395,2]
[331739047,1720729832461,-1266.494704,0.00013395,2]
[331739049,1720729832475,-202.0,0.0001346,2]
[331739051,1720729832485,-227.30730583,0.00013472,2]
[331739053,1720729832494,-8142.049396,0.0001356,2]
[331739055,1720729832504,-1266.494704,0.0001356,2]
[331739057,1720729832514,-1696.302,0.0001356,2]
[331739059,1720729832523,-202.0,0.0001357,2]
[331739061,1720729832532,-617.6013,0.000136,2]
[331739063,1720729832541,-4206.545,0.000136,2]
[331739065,1720729832550,-175.45907394,0.000136,2]
[331739067,1720729832559,-360.18077983,0.000136,2]
[331739069,1720729832567,-360.18077982,0.00013643,2]
[331739071,1720729832576,-127.43757844,0.0001365,2]
[331739073,1720729832588,-48.0214955,0.0001365,2]
[331739075,1720729832597,-693.24059,0.0001366,2]
[331739077,1720729832606,-69.79461063,0.0001368,2]
[331739079,1720729832617,-132.20538937,0.0001368,2]
[331739081,1720729832626,-1000.0,0.0001368,2]
[331739083,1720729832635,-1000.0,0.0001368,2]
[331739085,1720729832645,-1000.0,0.0001368,2]
[331739087,1720729832654,-1000.0,0.0001368,2]
[331739089,1720729832663,-1000.0,0.0001368,2]
[331739091,1720729832674,-1000.0,0.0001368,2]
[331739093,1720729832688,-1000.0,0.0001368,2]
[331739095,1720729832697,-1000.0,0.0001368,2]
[331739097,1720729832706,-360.18077982,0.00013686,2]
[331739099,1720729832715,-500.0,0.0001369,2]
[331739101,1720729832725,-1000.0,0.0001369,2]
[331739103,1720729832734,-1000.0,0.0001369,2]
[331739105,1720729832743,-1000.0,0.0001369,2]
[331739107,1720729832752,-1000.0,0.0001369,2]
[331739109,1720729832761,-1000.0,0.0001369,2]
[331739111,1720729832770,-1000.0,0.0001369,2]
[331739113,1720729832779,-1021.0,0.0001369,3]
[331739115,1720729832788,-1000.0,0.0001369,2]
[331739116,1720729832797,-1000.0,0.0001369,2]
[331739118,1720729832888,-1023.0,0.0001369,3]
[331739119,1720729832897,-1000.0,0.0001369,2]
[331739120,1720729832906,-1000.0,0.0001369,2]
[331739121,1720729832915,-1000.0,0.0001369,2]
[331739122,1720729832925,-199.64,0.00013699,2]
[331739123,1720729832937,-500.0,0.00013699,2]
[331739124,1720729832947,-500.0,0.00013699,2]
[331739125,1720729832956,-535.42,0.00013699,2]
[331739126,1720729832966,-500.0,0.00013699,2]
[331739127,1720729832975,-500.0,0.00013699,2]
[331739128,1720729832985,-498.24715279,0.00013699,2]
[331739129,1720729832994,-500.0,0.00013699,2]
[331739130,1720729833003,-500.0,0.00013699,2]
[331739131,1720729833012,-500.0,0.00013699,2]
[331739132,1720729833022,-200.0,0.00013699,7]
[331739133,1720729833031,-500.0,0.00013699,2]
[331739134,1720729833041,-500.0,0.00013699,2]
[331739135,1720729833050,-502.40228089,0.00013699,2]
[331739136,1720729833060,-500.0,0.00013699,2]
[331739137,1720729833070,-744.06,0.00013699,2]
[331739138,1720729833080,-500.0,0.00013699,2]
[331739139,1720729833090,-500.0,0.00013699,2]
[331739140,1720729833101,-540.06557559,0.00013699,2]
[331739141,1720729833110,-500.0,0.00013699,2]
[331739142,1720729833120,-500.0,0.00013699,2]
[331739143,1720729833129,-500.0,0.00013699,2]
[331739144,1720729833140,-654.57,0.00013699,2]
[331739145,1720729833150,-500.0,0.00013699,2]
[331739146,1720729833162,-500.0,0.00013699,2]
[331739147,1720729833172,-500.0,0.00013699,2]
[331739148,1720729833181,-500.0,0.00013699,2]
[331739149,1720729833193,-500.0,0.00013699,2]
[331739150,1720729833203,-500.0,0.00013699,2]
[331739151,1720729833212,-500.0,0.00013699,2]
[331739152,1720729833222,-500.0,0.00013699,2]
[331739153,1720729833231,-500.0,0.00013699,2]
[331739154,1720729833241,-500.0,0.00013699,2]
[331739155,1720729833251,-397.81555787,0.00013699,2]
[331739156,1720729833260,-500.0,0.00013699,2]
[331739157,1720729833269,-545.61646461,0.00013699,2]
[331739158,1720729833278,-500.0,0.00013699,2]
[331739159,1720729833288,-500.0,0.00013699,2]
[331739160,1720729833297,-500.0,0.00013699,2]
[331739161,1720729833307,-500.0,0.00013699,2]
[331739162,1720729833316,-500.0,0.00013699,2]
[331739163,1720729833325,-67042.1957,0.000137,2]
[331739164,1720729833338,-1292.99345972,0.000137,2]
[331739165,1720729833348,-119717.50578891,0.000137,2]
[331739166,1720729833361,-471.98453587,0.000137,2]
[331739167,1720729833374,-418.9295176,0.000137,2]
[331739168,1720729833387,-374.17002,0.000137,2]
[331739169,1720729833399,-48613.09223762,0.000137,2]
[331739170,1720729833410,-1207.665,0.000137,2]
[331739171,1720729833420,-10000.0,0.000137,2]
[331739172,1720729833430,-174.88201534,0.000137,2]
[331739173,1720729833444,-7500.0,0.000137,2]
[331739174,1720729833454,-162.66868336,0.000137,2]
[331739175,1720729833464,-175.45907394,0.000137,2]
[331739176,1720729833474,-1000.0,0.000137,3]
[331739177,1720729833484,-1000.0,0.000137,3]
[331739178,1720729833493,-1000.0,0.000137,3]
[331739179,1720729833503,-1000.0,0.000137,3]
[331739180,1720729833513,-1000.0,0.000137,3]
[331739181,1720729833523,-1000.0,0.000137,3]
[331739182,1720729833533,-1000.0,0.000137,3]
[331739183,1720729833543,-552.0,0.000137,3]
[331739184,1720729833553,-169.13159883,0.000137,2]
[331739185,1720729833562,-1481.0,0.000137,2]
[331739186,1720729833572,-222.39746096,0.000137,2]
[331739187,1720729833582,-8142.049396,0.00013725,2]
[331739188,1720729833591,-1266.494704,0.00013725,2]
[331739189,1720729833601,-360.18077982,0.00013729,2]
[331739190,1720729833611,-500.0,0.00013754,2]
[331739191,1720729833621,-500.0,0.00013754,2]
[331739192,1720729833632,-535.42,0.00013754,2]
[331739193,1720729833641,-500.0,0.00013754,2]
[331739194,1720729833651,-500.0,0.00013754,2]
[331739195,1720729833661,-500.0,0.00013754,2]
[331739196,1720729833670,-500.0,0.00013754,2]
[331739197,1720729833680,-200.0,0.00013754,7]
[331739198,1720729833692,-500.0,0.00013754,2]
[331739199,1720729833702,-500.0,0.00013754,2]
[331739200,1720729833712,-500.0,0.00013754,2]
[331739201,1720729833722,-744.06,0.00013754,2]
[331739202,1720729833731,-500.0,0.00013754,2]
[331739203,1720729833741,-500.0,0.00013754,2]
[331739204,1720729833750,-500.0,0.00013754,2]
[331739205,1720729833760,-500.0,0.00013754,2]
[331739206,1720729833770,-500.0,0.00013754,2]
[331739207,1720729833780,-654.57,0.00013754,2]
[331739208,1720729833789,-500.0,0.00013754,2]
[331739209,1720729833799,-500.0,0.00013754,2]
[331739210,1720729833809,-500.0,0.00013754,2]
[331739211,1720729833818,-500.0,0.00013754,2]
[331739212,1720729833828,-500.0,0.00013754,2]
[331739213,1720729833837,-500.0,0.00013754,2]
[331739214,1720729833846,-500.0,0.00013754,2]
[331739215,1720729833855,-500.0,0.00013754,2]
[331739216,1720729833865,-500.0,0.00013754,2]
[331739217,1720729833875,-500.0,0.00013754,2]
[331739218,1720729833885,-500.0,0.00013754,2]
[331739219,1720729833895,-500.0,0.00013754,2]
[331739220,1720729833905,-500.0,0.00013754,2]
[331739221,1720729833915,-500.0,0.00013754,2]
[331739222,1720729833925,-500.0,0.00013754,2]
[331739223,1720729833935,-360.18077982,0.00013771,2]
[331739224,1720729833945,-202.0,0.0001378,2]
[331739225,1720729833955,-18677.2388747,0.00013798,2]
[331739226,1720729833966,-3436.2741122,0.00013798,2]
[331739227,1720729833976,-1917.1118827,0.00013798,2]
[331739228,1720729833986,-3139.50536928,0.00013799,2]
[331739229,1720729833996,-500.0,0.00013799,2]
[331739230,1720729834006,-500.0,0.00013799,2]
[331739231,1720729834015,-500.0,0.00013799,2]
[331739232,1720729834025,-500.0,0.00013799,2]
[331739233,1720729834036,-500.0,0.00013799,2]
[331739234,1720729834045,-504.09786851,0.00013799,2]
[331739235,1720729834055,-500.0,0.00013799,2]
[331739236,1720729834065,-500.0,0.00013799,2]
[331739237,1720729834075,-500.0,0.00013799,2]
[331739238,1720729834084,-508.10765225,0.00013799,2]
[331739239,1720729834094,-263.99104576,0.00013799,2]
[331739240,1720729834103,-500.0,0.00013799,2]
[331739241,1720729834113,-300.0,0.00013799,2]
[331739242,1720729834122,-300.0,0.00013799,2]
[331739243,1720729834132,-716.0,0.000138,2]
[331739244,1720729834141,-1158279.50129293,0.000138,2]
[331739263,1720729837799,-477.75024862,0.00013221,2]
[331739265,1720729837809,-2232.36,0.00013699,2]
[331739266,1720729837819,-500.0,0.00013754,2]
[331739267,1720729837828,-2232.36,0.00013754,2]